[Event "GCT Superbet Blitz Poland 2025"]
[Site "Warsaw"]
[Date "2025.04.29"]
[Round "2"]
[White "Topalov, Veselin"]
[Black "Firouzja, Alireza"]
[Result "1-0"]
[ECO "A20"]
[WhiteElo "2717"]
[BlackElo "2757"]
[Annotator "TA"]
[PlyCount "109"]
[EventDate "2025.??.??"]
[EventType "blitz"]
[TimeControl "300+2"]

{[%evp 9,109,0,4,0,0,0,0,0,4,14,8,7,10,-18,15,11,0,10,0,-9,4,-14,8,0,0,0,10,-8,0,0,79,68,66,76,145,65,54,44,66,77,131,0,0,-52,-38,-250,116,119,118,116,156,143,182,91,223,225,232,226,621,519,523,469,564,570,689,533,646,418,389,395,588,514,540,514,477,345,345,336,322,302,318,289,294,279,256,117,155,147,277,146,296,300,544,379,540,539,540,538,606,604,540,487]} 1. c4 {[%emt 0:00:02]} e5 {[%emt 0:00:03]} 2. d3 {[%emt 0:00:04]} Bb4+ {[%emt 0:00:16]} 3. Bd2 {[%emt 0:00:04]} c5 {[%emt 0:00:04]} ({RR} 3... Bxd2+ 4. Qxd2 Nf6 5. Nf3 Qe7 6. Nc3 O-O 7. e4 d6 8. h3 c5 9. g3 Nc6 10. Bg2 h6 11. O-O a6 12. Ne1 Rb8 13. Nc2 b5 14. b3 b4 15. Nd5 Nxd5 16. cxd5 Na7 17. f4 Nb5 18. f5 {Erigaisi,A (2718)-Caruana,F (2766) chess.com INT 2022 0-1}) ({RR} 3... Bxd2+ 4. Qxd2 d6 5. Nc3 Nf6 6. Nf3 O-O 7. e3 b6 8. g3 Bb7 9. Bg2 Nbd7 10. O-O Rb8 11. e4 c6 12. a4 d5 {½-½ (12) Iturrizaga Bonelli,E (2585)-Delchev,A (2455) Darfo Boario Terme ITA 2025}) 4. g3 $146 {[%emt 0:00:07]} (4. Nf3 Nc6 5. g3 Bxd2+ 6. Qxd2 d6 7. Bg2 Nge7 8. O-O O-O 9. Nc3 h6 10. a3 a5 {1-0 Giri,A (2754)-Ivic,V (2570) Wch Rapid Samarkand 2023 (4)}) ({RR} 4. Nf3 Nc6 5. g3 Bxd2+ 6. Qxd2 d6 7. Bg2 Nge7 8. O-O O-O 9. Nc3 h6 10. a3 a5 11. Qd1 f5 12. Nd2 Kh8 13. e3 Be6 14. Nd5 Bg8 15. Nxe7 Nxe7 16. Rb1 d5 17. Qc2 Nc6 18. cxd5 Bxd5 {Giri,A (2754)-Ivic,V (2570) Samarkand UZB 2023 1-0 (71)}) ({RR} 4. Nf3 Nc6 5. g3 Bxd2+ 6. Qxd2 d6 7. Bg2 Nge7 8. O-O O-O 9. Nc3 h6 10. a3 a5 11. Qd1 f5 12. Nd2 Kh8 13. e3 Be6 14. Nd5 Bg8 15. Nxe7 Nxe7 16. Rb1 d5 17. Qc2 Nc6 18. cxd5 Bxd5 {Giri,A (2754)-Ivic,V (2570) Samarkand UZB 2023 1-0 (71)}) ({RR} 4. Nf3 Nc6 5. g3 Bxd2+ 6. Qxd2 d6 7. Bg2 Nge7 8. O-O O-O 9. Nc3 h6 10. a3 a5 11. Qd1 f5 12. Nd2 Kh8 13. e3 Be6 14. Nd5 Bg8 15. Nxe7 Nxe7 16. Rb1 d5 17. Qc2 Nc6 18. cxd5 Bxd5 {Giri,A (2754)-Ivic,V (2570) Samarkand UZB 2023 1-0 (71)}) 4... Nc6 {[%emt 0:00:04]} 5. Bg2 {[%emt 0:00:05]} Nge7 {[%emt 0:00:04]} 6. Nf3 {[%emt 0:00:04] A20: English Opening: 1...e5.} O-O {[%emt 0:00:06]} 7. Nc3 {[%emt 0:00:10]} d6 {[%emt 0:00:07]} 8. O-O {[%emt 0:00:06] The position is equal.} h6 {[%emt 0:00:06]} 9. a3 {[%emt 0:00:00]} Ba5 {[%emt 0:00:03]} 10. Rb1 {[%emt 0:00:20]} Be6 {[%emt 0:00:05]} 11. Qa4 {[%emt 0:00:21]} Bxc3 {[%emt 0:00:43]} 12. Bxc3 {[%emt 0:00:01]} a5 {[%emt 0:00:05]} 13. e3 {[%emt 0:00:37]} Qd7 {[%emt 0:00:06]} 14. Qd1 {[%emt 0:00:12]} a4 {[%emt 0:00:27]} 15. Re1 {[%emt 0:00:03]} Bh3 {[%emt 0:00:07]} 16. Bxh3 {[%emt 0:01:14]} Qxh3 {[%emt 0:00:02]} 17. d4 {[%emt 0:00:03]} e4 {[%emt 0:00:16]} 18. Nh4 {[%emt 0:00:13]} Ng6 {[%emt 0:00:37]} 19. Ng2 {[%emt 0:00:18]} Nd8 {[%emt 0:00:22]} (19... Rfd8 $11 {remains equal.}) 20. Nf4 $16 {[%emt 0:00:20]} Qf5 {[%emt 0:00:53]} 21. dxc5 {[%emt 0:00:11]} Ne5 {[%emt 0:00:16]} (21... dxc5 22. Qd5 Qxd5 23. cxd5 (23. Nxd5 Ne6 $16) 23... Ra6) 22. Bxe5 {[%emt 0:00:44]} (22. Qxd6 $6 Nf3+ 23. Kg2 Nxe1+ 24. Rxe1 Ne6 $11) (22. cxd6 $16 {Strongly threatening Bxe5.} Nf3+ 23. Kf1) 22... dxe5 $14 {[%emt 0:00:01]} 23. Nd5 {[%emt 0:00:01] [#]} Kh8 {[%emt 0:00:10]} 24. Nb6 {[%emt 0:00:18][%csl Ba4,Ba8]} Ra5 {[%emt 0:00:27]} (24... Ra6 $142) 25. Qd6 {[%emt 0:00:03] White is more active.} (25. Qd2 $16 Ra6 26. Qd7) 25... Ne6 $11 {[%emt 0:00:02][%cal Of8d8]} 26. Nd7 {[%emt 0:00:03]} (26. c6 $11 bxc6 27. h4 (27. Qxc6 Ng5 $15)) 26... Rd8 $1 $15 {[%emt 0:00:08]} 27. Qxe5 $2 {[%emt 0:00:02] [#]} (27. h4 $1 $15) 27... Rxc5 $2 {[%emt 0:00:07]} ({Black should try} 27... Qh3 $1 $19 {Hoping for ...Ng5.} 28. Qxe4 Rxd7) 28. Qxf5 $16 {[%emt 0:00:03]} Rxf5 {[%emt 0:00:00]} 29. Red1 $36 {[%emt 0:00:01][%mdl 2048] Black is under strong pressure.} Ng5 {[%emt 0:00:04]} 30. Kg2 {[%emt 0:00:01] Repels Nh3} Nf3 {[%emt 0:00:02]} 31. c5 {[%emt 0:00:01]} (31. Nb6 $18 Nd2 32. Rbc1 (32. Nxa4 Rd3 $18)) 31... Rc8 {[%emt 0:00:06]} (31... Ne1+ $16 32. Rxe1 Rxd7) 32. Rbc1 $18 {[%emt 0:00:01]} Rc7 {[%emt 0:00:01]} 33. Rc4 {[%emt 0:00:02][%csl Ba4,Be4]} Ng5 {[%emt 0:00:04]} (33... Ne5 34. Nxe5 (34. Rxa4 $2 Nxd7 35. b4 Ne5 $17) 34... Rxe5) 34. h4 {[%emt 0:00:02]} Ne6 {[%emt 0:00:02]} 35. Rxe4 {[%emt 0:00:01]} Kh7 {[%emt 0:00:02]} 36. Rxa4 {[%emt 0:00:02]} g5 {[%emt 0:00:02]} 37. hxg5 {[%emt 0:00:01]} Rxg5 {[%emt 0:00:02]} 38. Nf6+ {[%emt 0:00:02]} Kg6 {[%emt 0:00:01]} 39. Ne4 {[%emt 0:00:02]} Rh5 {[%emt 0:00:04]} (39... Nxc5 40. Rc4 b5) 40. g4 {[%emt 0:00:01]} Re5 {[%emt 0:00:01]} 41. f4 {[%emt 0:00:01]} Nxc5 {[%emt 0:00:02]} 42. Rd6+ {[%emt 0:00:03]} Kg7 {[%emt 0:00:01]} 43. Nxc5 {[%emt 0:00:02]} Rexc5 {[%emt 0:00:01][%mdl 4096] Endgame KRR-KRR. White is two pawns up.} 44. Kf3 {[%emt 0:00:01]} Rc1 {[%emt 0:00:02]} 45. Rb4 {[%emt 0:00:01]} Rf1+ {[%emt 0:00:02]} 46. Ke2 {[%emt 0:00:02]} Rg1 {[%emt 0:00:01]} 47. Rd2 {[%emt 0:00:03]} (47. Rdb6 $18 {has better winning chances.}) 47... Rxg4 {[%emt 0:00:02]} 48. Kf3 {[%emt 0:00:02] Wards off Rg2} h5 {[%emt 0:00:03]} (48... Rh4 $16 49. Rg2+ Kf8) 49. Rb5 {[%emt 0:00:00]} ({White should play} 49. Rh2 $18) 49... Kg6 {[%emt 0:00:03]} (49... Rh4 $16 50. Rg2+ Kf8) 50. Rh2 {[%emt 0:00:02]} f5 $2 {[%emt 0:00:03]} (50... Rg1 {was called for.} 51. Rhxh5 Rf1+ 52. Ke2 Rb1 53. Rhg5+ Kh7) 51. Rb6+ {[%emt 0:00:02]} Kg7 {[%emt 0:00:02]} (51... Rc6 $142 52. Rxc6+ (52. Rxb7 h4 $18) 52... bxc6) 52. Rxh5 {[%emt 0:00:01] White is clearly winning.} Rg1 {[%emt 0:00:02]} 53. Rxf5 {[%emt 0:00:02]} Rf1+ {[%emt 0:00:03]} 54. Ke2 {[%emt 0:00:01]} Rh1 {[%emt 0:00:02]} 55. Rfb5 {[%emt 0:00:00] Weighted Error Value: White=0.41/Black=0.58 Loses game: 	White=1 	--- Missed win: 	--- 	Black=1 Mistake: 	White=6 	Black=10 Inaccurate: 	White=2 	Black=3 OK: 	White=22 	Black=11 Best: 	White=1 	Black=4 Strong: 	--- 	Black=1} 1-0

[Event "GCT Superbet Blitz Poland 2025"]
[Site "Warsaw"]
[Date "2025.04.29"]
[Round "2"]
[White "Gavrilescu, David"]
[Black "Deac, Bogdan-Daniel"]
[Result "1/2-1/2"]
[ECO "C47"]
[WhiteElo "2554"]
[BlackElo "2668"]
[Annotator "RC"]
[PlyCount "76"]
[EventDate "2025.??.??"]
[EventType "blitz"]
[TimeControl "300+2"]

1. e4 {[%emt 0:00:02]} e5 {[%emt 0:00:01]} 2. Nf3 {[%emt 0:00:02]} Nc6 {[%emt 0:00:02]} 3. Nc3 {[%emt 0:00:02]} Nf6 {[%emt 0:00:02]} 4. d4 {[%emt 0:00:02]} exd4 {[%emt 0:00:01]} 5. Nxd4 {[%emt 0:00:02]} Bb4 {[%emt 0:00:05]} 6. Nxc6 {[%emt 0:00:02]} bxc6 {[%emt 0:00:02]} 7. Bd3 {[%emt 0:00:03]} O-O {[%emt 0:00:03]} 8. O-O {[%emt 0:00:03]} d5 {[%emt 0:00:03]} 9. exd5 {[%emt 0:00:02]} Bg4 {[%emt 0:00:39]} 10. f3 {[%emt 0:00:04]} Bh5 {[%emt 0:00:01]} 11. Bg5 {[%emt 0:00:07]} Bxc3 {[%emt 0:00:43]} ({RR} 11... Qd6 12. Kh1 Bxc3 13. bxc3 cxd5 {½-½ (13) Azoulay,Y (2210)-Kaliszuk,K (2128) Krakow POL 2025}) ({RR} 11... cxd5 12. Bxf6 Qxf6 13. Nxd5 Qxb2 14. Rb1 Bc5+ 15. Kh1 Qe5 16. f4 Bxd1 17. fxe5 Bg4 18. Nxc7 Rac8 19. Nb5 Be6 20. a4 Rfd8 21. Rfd1 g6 22. Be4 Rxd1+ 23. Rxd1 Bb6 24. Bd3 Rc5 25. Re1 Ba5 26. Re2 {Indjic,A (2618)-Deac,B (2700) chess.com INT 2023 1-0 (60)}) 12. bxc3 {[%emt 0:00:08]} cxd5 {[%emt 0:00:02]} 13. c4 {[%emt 0:01:03]} ({RR} 13. Qd2 Qd6 14. Kh1 Bg6 15. Rad1 Rfe8 16. c4 Bxd3 17. Qxd3 dxc4 18. Qxc4 Qe6 19. Rd4 h6 20. Qxe6 Rxe6 21. Bxf6 Rxf6 22. Rc4 c6 23. h3 Rd8 24. Rf2 Re6 {½-½ (24) Kovalev,V (2623)-Nakamura,H (2750) Chess.com INT 2022}) 13... Bg6 $146 {[%emt 0:00:45]} ({RR} 13... dxc4 14. Bxc4 Qe7 15. Qd4 Rfd8 16. Qf2 Qe5 17. Be3 Qc3 18. Bb3 a5 19. a4 Rd7 20. Rad1 Rad8 21. Rxd7 Rxd7 22. Qe1 Qxe1 23. Rxe1 h6 24. Re2 Bg6 25. Bd2 c5 26. Bxa5 c4 27. Bxc4 Ra7 28. Be1 {Karpatchev,A (2469)-Winterberg,L (2372) Lueneburg 2018 ½-½ (114)}) ({RR} 13... c6 14. cxd5 cxd5 15. Rb1 Qd6 16. Qd2 Rac8 17. Rb5 Bg6 18. Qa5 Rfd8 19. Rfb1 Qe5 20. Bxf6 Qe3+ 21. Kh1 gxf6 22. Rxd5 Rxd5 23. Qxd5 Bxd3 24. Qxd3 Qxd3 25. cxd3 Rc2 26. Ra1 Rd2 27. h3 Rxd3 28. a4 {Cubas,J (2417)-Duarte Napoles,F (2203) Osasco BRA 2024 1-0 (67)}) ({RR} 13... c6 14. cxd5 cxd5 15. Qd2 h6 16. Bh4 Qb6+ 17. Bf2 Qc6 18. Bd4 Bg6 19. Bxf6 Qxf6 20. Bxg6 Qxg6 21. Qxd5 Qxc2 22. Rac1 Qb2 23. Rb1 Qa3 24. Rfd1 Rab8 25. h4 Qe3+ 26. Kh2 Qf4+ 27. g3 Qe3 28. Kh3 {Hovhannisyan,R (2607)-Morefield,J (2226) chess.com INT 2023 1-0 (86)}) 14. Bxg6 {[%emt 0:00:50]} hxg6 {[%emt 0:00:02]} 15. Bxf6 {[%emt 0:00:06]} Qxf6 {[%emt 0:00:13]} 16. cxd5 {[%emt 0:00:02]} Qc3 {[%emt 0:00:06]} 17. Rf2 {[%emt 0:00:53]} Rfd8 {[%emt 0:01:07]} 18. Rd2 {[%emt 0:00:41]} Rd6 {[%emt 0:00:12]} 19. Rb1 {[%emt 0:00:29]} Rad8 {[%emt 0:00:28]} 20. h3 {[%emt 0:00:04]} Qc5+ {[%emt 0:00:10]} 21. Kh1 {[%emt 0:00:02]} Rxd5 {[%emt 0:00:06]} 22. Rxd5 {[%emt 0:00:02]} Qxd5 {[%emt 0:00:18]} 23. Qxd5 {[%emt 0:00:04]} Rxd5 {[%emt 0:00:01]} 24. Rb8+ {[%emt 0:00:07]} Kh7 {[%emt 0:00:01]} 25. Rb7 {[%emt 0:00:02]} Rc5 {[%emt 0:00:02]} 26. Rxa7 {[%emt 0:00:02]} Rxc2 {[%emt 0:00:01]} 27. a4 {[%emt 0:00:03]} f6 {[%emt 0:00:03]} 28. a5 {[%emt 0:00:02]} Ra2 {[%emt 0:00:04]} 29. Rxc7 {[%emt 0:00:02]} Rxa5 {[%emt 0:00:01]} 30. Kh2 {[%emt 0:00:01]} g5 {[%emt 0:00:02]} 31. Rb7 {[%emt 0:00:02]} Rc5 {[%emt 0:00:01]} 32. Ra7 {[%emt 0:00:01]} Rb5 {[%emt 0:00:01]} 33. Rc7 {[%emt 0:00:01]} Ra5 {[%emt 0:00:01]} 34. Rb7 {[%emt 0:00:01]} Rc5 {[%emt 0:00:01]} 35. Ra7 {[%emt 0:00:02]} Rb5 {[%emt 0:00:00]} 36. Rc7 {[%emt 0:00:01]} Ra5 {[%emt 0:00:01]} 37. Rb7 {[%emt 0:00:01]} Rc5 {[%emt 0:00:01]} 38. Ra7 {[%emt 0:00:01]} Rb5 {[%emt 0:00:01]} 1/2-1/2

[Event "GCT Superbet Blitz Poland 2025"]
[Site "Warsaw"]
[Date "2025.04.29"]
[Round "3"]
[White "Firouzja, Alireza"]
[Black "Praggnanandhaa R"]
[Result "0-1"]
[ECO "E29"]
[WhiteElo "2757"]
[BlackElo "2758"]
[Annotator "TA"]
[PlyCount "62"]
[EventDate "2025.??.??"]
[EventType "blitz"]
[TimeControl "300+2"]

{[%evp 25,62,-88,-48,-35,-37,-87,-89,-98,-70,-100,-97,-79,-74,-106,-94,-164,-161,-232,-240,-242,-221,-236,-201,-200,-214,-250,-243,-233,-227,-321,-322,-319,-323,-397,-376,-437,-438,-394,-418]} 1. d4 {[%emt 0:00:00]} Nf6 {[%emt 0:00:01]} 2. c4 {[%emt 0:00:01]} e6 {[%emt 0:00:00]} 3. Nc3 {[%emt 0:00:07]} Bb4 {[%emt 0:00:02]} 4. a3 {[%emt 0:00:01]} Bxc3+ {[%emt 0:00:03]} 5. bxc3 {[%emt 0:00:00]} c5 {[%emt 0:00:13]} 6. e3 {[%emt 0:00:03]} b6 {[%emt 0:00:10]} 7. Bd3 {[%emt 0:00:14]} Bb7 {[%emt 0:00:02]} 8. f3 {[%emt 0:00:10]} Nc6 {[%emt 0:00:03]} 9. Ne2 {[%emt 0:00:06]} O-O {[%emt 0:00:02]} 10. e4 {[%emt 0:00:08]} Ne8 {[%emt 0:00:02]} 11. O-O {[%emt 0:00:11]} Ba6 {[%emt 0:00:01]} ({RR} 11... Na5 12. f4 f5 13. Ng3 Nd6 14. exf5 exf5 15. dxc5 bxc5 16. Rb1 Qc7 17. Re1 g6 18. Bf1 Rae8 19. Be3 Ndxc4 20. Bf2 Rxe1 21. Qxe1 d6 22. Qd1 Qf7 23. a4 Bc6 24. Ne2 Qd7 25. h4 Bxa4 26. Qd3 {Anton Guijarro,D (2631)-Eljanov,P (2723) Dubai 2014 0-1 (44)}) 12. e5 {[%emt 0:00:20]} ({RR} 12. Be3 Nd6 13. dxc5 Nxc4 14. Bxc4 Bxc4 15. Rf2 Qe7 16. Qd6 Qxd6 17. cxd6 Bxe2 18. Rxe2 Rac8 19. f4 Na5 20. Bd4 Rc4 21. Rb2 Nc6 22. Rd2 f6 23. e5 fxe5 24. fxe5 Ra4 25. h3 h5 26. Kh2 Kh7 {Mattenberger,M (2338)-Song,Y (2367) Plzen CZE 2025 0-1 (42)}) 12... Na5 {[%emt 0:00:10]} 13. f4 $146 {[%emt 0:00:40]} ({RR} 13. Qc2 f5 14. exf6 Nxf6 15. Bg5 h6 16. Bf4 Bxc4 17. Bd6 Bxd3 18. Qxd3 c4 19. Qg6 Rf7 20. Rae1 Nd5 21. Ng3 Nb7 22. Be5 Qf8 23. Nh5 Nd8 24. Re4 Nc6 25. Rg4 Nxe5 26. dxe5 Ne3 27. Nf6+ Rxf6 {Kunz,H-Dorawa,B Schkopau 1958 0-1 (59)}) 13... f5 {[%emt 0:00:14]} 14. d5 {[%emt 0:00:22] E29: Nimzo-Indian: Sämisch: 5...0-0 6 e3 c5 7 Bd3 Nc6.} d6 {[%emt 0:01:20]} ({Much worse is} 14... Nxc4 $6 15. Ng3 $14 (15. Qa4 b5 $15)) 15. dxe6 {[%emt 0:00:35]} (15. g4 $1 $15) 15... Qe7 {[%emt 0:00:01] Black sacrificed a pawn} 16. g4 {[%emt 0:00:12] [#] Black is better.} g6 {[%emt 0:00:01]} 17. gxf5 {[%emt 0:01:02]} gxf5 {[%emt 0:00:01]} 18. Ng3 {[%emt 0:00:04]} Ng7 {[%emt 0:00:01]} 19. Re1 {[%emt 0:00:21]} Qxe6 $146 {[%emt 0:00:19]} (19... Rad8 20. exd6 Rxd6 21. Qf3 Bb7 22. Qf1 Rxe6 23. Bd2 Qd7 24. Rxe6 Qxe6 25. Re1 Qd6 26. Re3 Kh8 {0-1 Iljin,T (2416)-Vaibhav,S (2222) Alushta May-A 2009 (9)}) 20. Bf1 {[%emt 0:00:22]} (20. Ra2 $17) 20... Rad8 $19 {[%emt 0:00:16] aiming for ...dxe5.} 21. Qf3 {[%emt 0:00:25]} (21. Qd5 $142) 21... Bb7 {[%emt 0:00:13]} (21... Bxc4 22. Bg2) (21... Nxc4 22. Qf2 $17) 22. Qf2 {[%emt 0:00:02]} dxe5 {[%emt 0:00:02]} (22... Nxc4 23. exd6 Qd5 24. Qa2 Nxd6 25. Re5 Qxa2 26. Rxa2) 23. Rxe5 {[%emt 0:00:03]} Qc6 {[%emt 0:00:09]} 24. Be3 {[%emt 0:00:03]} Rd6 {[%emt 0:00:03]} 25. Re7 {[%emt 0:00:11]} Rf7 {[%emt 0:00:15]} 26. Rxb7 {[%emt 0:00:06]} Qxb7 {[%emt 0:00:06]} ({Resist} 26... Nxb7 27. Bg2 Qd7 28. Bd5) 27. Re1 {[%emt 0:00:03]} (27. Bg2 $142 Qd7 28. Bd5) 27... Qd7 {[%emt 0:00:04]} 28. Qf3 {[%emt 0:00:03]} Re7 {[%emt 0:00:04]} 29. h4 {[%emt 0:00:02]} h6 {[%emt 0:00:13]} 30. h5 {[%emt 0:00:02]} Qe8 {[%emt 0:00:05]} 31. Kf2 {[%emt 0:00:02]} Kh8 {[%emt 0:00:08] Black took control after the opening. Weighted Error Value: White=0.30/Black=0.06 (flawless) Mistake: 	White=4 	--- Inaccurate: 	White=2 	--- OK: 	White=3 	Black=9 Best: 	White=1 	Black=1} 0-1

[Event "GCT Superbet Blitz Poland 2025"]
[Site "Warsaw"]
[Date "2025.04.29"]
[Round "3"]
[White "Aronian, Levon"]
[Black "Gavrilescu, David"]
[Result "1-0"]
[ECO "D45"]
[WhiteElo "2747"]
[BlackElo "2554"]
[Annotator "RC"]
[PlyCount "155"]
[EventDate "2025.??.??"]
[EventType "blitz"]
[TimeControl "300+2"]

1. c4 {[%emt 0:00:01]} e6 {[%emt 0:00:01]} 2. Nc3 {[%emt 0:00:02]} d5 {[%emt 0:00:02]} 3. d4 {[%emt 0:00:01]} c6 {[%emt 0:00:01]} 4. e3 {[%emt 0:00:01]} Nf6 {[%emt 0:00:02]} 5. Nf3 {[%emt 0:00:01]} Nbd7 {[%emt 0:00:02]} 6. h3 {[%emt 0:00:01]} Be7 {[%emt 0:00:12]} ({RR} 6... Bd6 7. Bd3 O-O 8. O-O dxc4 9. Bxc4 b5 10. Bd3 Bb7 11. e4 e5 12. Be3 Re8 13. dxe5 Nxe5 14. Nxe5 Bxe5 15. Qc2 Bd4 16. Rae1 a6 17. Bxd4 Qxd4 18. Ne2 Qb6 19. Ng3 Nd7 20. e5 h6 21. e6 {Nihal,S (2668)-Erigaisi,A (2778) Almaty KAZ 2024 ½-½ (46)}) ({RR} 6... b6 7. cxd5 exd5 8. Bd3 Bb7 9. O-O Be7 10. Ne5 O-O 11. f4 c5 12. Qf3 Rc8 13. Bd2 a6 14. g4 cxd4 15. exd4 Ne4 16. Nxe4 dxe4 17. Bxe4 Nxe5 18. dxe5 Bxe4 19. Qxe4 Qxd2 {0-1 (19) Paravyan,D (2621)-Rasulov,V (2500) chess.com INT 2025}) 7. Bd3 $146 {[%emt 0:00:10]} ({RR} 7. Bd2 O-O 8. a3 Ne4 9. cxd5 exd5 10. Bd3 Nxd2 11. Qxd2 Nf6 12. Qc2 Re8 13. Ne5 Bd6 14. f4 g6 15. O-O-O Nd7 16. g4 Nf8 17. h4 f6 18. Nxg6 hxg6 19. h5 Rxe3 20. Bxg6 Bxf4 21. Kb1 Bh6 {Schuster,H (1706)-Trost,B (1415) Bayern 2012 ½-½ (56)}) ({RR} 7. cxd5 exd5 8. Bd3 O-O 9. g4 Bb4 10. Bd2 Bxc3 11. Bxc3 Ne4 12. Qc2 Re8 13. O-O-O b5 14. Be1 Qb6 15. Bxe4 dxe4 16. Nd2 c5 17. d5 Nf6 18. Nb3 Bb7 19. d6 b4 20. d7 Re5 21. d8=Q+ Rxd8 {Gislason,G (2348)-Fridgeirsson,D (1775) Reykjavik 2009 1-0 (45)}) 7... b6 {[%emt 0:00:23]} 8. O-O {[%emt 0:00:26]} Bb7 {[%emt 0:00:03]} 9. b3 {[%emt 0:00:04]} O-O {[%emt 0:00:07]} 10. Bb2 {[%emt 0:00:01]} Rc8 {[%emt 0:00:26]} 11. Qe2 {[%emt 0:00:18]} Re8 {[%emt 0:00:35]} 12. Rfd1 {[%emt 0:00:15]} dxc4 {[%emt 0:00:09]} 13. bxc4 {[%emt 0:00:15]} c5 {[%emt 0:00:03]} 14. d5 {[%emt 0:00:08]} exd5 {[%emt 0:00:12]} 15. cxd5 {[%emt 0:00:01]} Bd6 {[%emt 0:00:13]} 16. Nb5 {[%emt 0:00:32]} Bb8 {[%emt 0:00:04]} 17. d6 {[%emt 0:00:02]} a6 {[%emt 0:00:10]} 18. Nc7 {[%emt 0:00:09]} Bxc7 {[%emt 0:00:03]} 19. dxc7 {[%emt 0:00:02]} Qxc7 {[%emt 0:00:03]} 20. Bxa6 {[%emt 0:00:06]} Bxa6 {[%emt 0:00:09]} 21. Qxa6 {[%emt 0:00:01]} Qc6 {[%emt 0:00:36]} 22. Qd3 {[%emt 0:00:33]} c4 {[%emt 0:00:19]} 23. Qf5 {[%emt 0:00:41]} h6 {[%emt 0:00:16]} 24. Rac1 {[%emt 0:00:20]} Qe6 {[%emt 0:00:21]} 25. Nd4 {[%emt 0:00:20]} Qxf5 {[%emt 0:00:36]} 26. Nxf5 {[%emt 0:00:01]} Rc5 {[%emt 0:00:02]} 27. Nd6 {[%emt 0:00:29]} Ra8 {[%emt 0:00:03]} 28. Nxc4 {[%emt 0:00:25]} Rxa2 {[%emt 0:00:11]} 29. Bd4 {[%emt 0:00:01]} Rf5 {[%emt 0:00:08]} 30. f3 {[%emt 0:00:14]} b5 {[%emt 0:00:05]} 31. Rd2 {[%emt 0:00:08]} Rxd2 {[%emt 0:00:10]} 32. Nxd2 {[%emt 0:00:00]} Rd5 {[%emt 0:00:07]} 33. Nb3 {[%emt 0:00:02]} Rd6 {[%emt 0:00:05]} 34. Rc8+ {[%emt 0:00:03]} Kh7 {[%emt 0:00:01]} 35. Rc7 {[%emt 0:00:05]} Ra6 {[%emt 0:00:05]} 36. Bxf6 {[%emt 0:00:04]} Nxf6 {[%emt 0:00:02]} 37. Nd4 {[%emt 0:00:04]} Rb6 {[%emt 0:00:04]} 38. Rxf7 {[%emt 0:00:04]} b4 {[%emt 0:00:01]} 39. Nb3 {[%emt 0:00:01]} Nd5 {[%emt 0:00:04]} 40. e4 {[%emt 0:00:02]} Nc3 {[%emt 0:00:02]} 41. Rc7 {[%emt 0:00:02]} Kg6 {[%emt 0:00:03]} 42. Kf2 {[%emt 0:00:03]} h5 {[%emt 0:00:01]} 43. h4 {[%emt 0:00:01]} Ra6 {[%emt 0:00:01]} 44. Nd4 {[%emt 0:00:06]} Ra2+ {[%emt 0:00:02]} 45. Kg3 {[%emt 0:00:02]} Rb2 {[%emt 0:00:04]} 46. Rb7 {[%emt 0:00:02]} Kf6 {[%emt 0:00:01]} 47. Rb6+ {[%emt 0:00:02]} Kf7 {[%emt 0:00:01]} 48. Kf4 {[%emt 0:00:02]} Rxg2 {[%emt 0:00:02]} 49. Rxb4 {[%emt 0:00:01]} Ne2+ {[%emt 0:00:02]} 50. Nxe2 {[%emt 0:00:01]} Rxe2 {[%emt 0:00:01]} 51. Rb7+ {[%emt 0:00:02]} Kg6 {[%emt 0:00:02]} 52. Rb6+ {[%emt 0:00:00]} Kf7 {[%emt 0:00:02]} 53. Kg5 {[%emt 0:00:01]} Re3 {[%emt 0:00:03]} 54. Rb7+ {[%emt 0:00:01]} Kf8 {[%emt 0:00:01]} 55. Kf4 {[%emt 0:00:02]} Re1 {[%emt 0:00:03]} 56. Kf5 {[%emt 0:00:01]} Rg1 {[%emt 0:00:03]} 57. e5 {[%emt 0:00:03]} Kg8 {[%emt 0:00:02]} 58. f4 {[%emt 0:00:05]} Kf8 {[%emt 0:00:02]} 59. Rb8+ {[%emt 0:00:03]} Ke7 {[%emt 0:00:01]} 60. Rb7+ {[%emt 0:00:02]} Kf8 {[%emt 0:00:01]} 61. Rb6 {[%emt 0:00:01]} Kf7 {[%emt 0:00:01]} 62. Ra6 {[%emt 0:00:03]} g6+ {[%emt 0:00:02]} 63. Ke4 {[%emt 0:00:01]} Re1+ {[%emt 0:00:02]} 64. Kd5 {[%emt 0:00:04]} Rd1+ {[%emt 0:00:01]} 65. Kc6 {[%emt 0:00:02]} Rc1+ {[%emt 0:00:02]} 66. Kd7 {[%emt 0:00:01]} Re1 {[%emt 0:00:06]} 67. Rf6+ {[%emt 0:00:03]} Kg7 {[%emt 0:00:01]} 68. Rd6 {[%emt 0:00:03]} Kf7 {[%emt 0:00:02]} 69. Rc6 {[%emt 0:00:02]} Re4 {[%emt 0:00:03]} 70. Rf6+ {[%emt 0:00:01]} Kg7 {[%emt 0:00:00]} 71. Ke7 {[%emt 0:00:00]} Ra4 {[%emt 0:00:02]} 72. Rf7+ {[%emt 0:00:02]} Kg8 {[%emt 0:00:02]} 73. e6 {[%emt 0:00:04]} Ra5 {[%emt 0:00:04]} 74. Kf6 {[%emt 0:00:02]} Ra6 {[%emt 0:00:02]} 75. Rg7+ {[%emt 0:00:02]} Kh8 {[%emt 0:00:01]} 76. Rxg6 {[%emt 0:00:01]} Kh7 {[%emt 0:00:01]} 77. Rg5 {[%emt 0:00:02]} Kh6 {[%emt 0:00:01]} 78. Re5 {[%emt 0:00:01]} 1-0